Cogmind - Beta 17 @@@ ROGUE MODE // 2026.08.23 @ 13:48:06 Player: Fedop Result: Destroyed by G-34 Mercenary with Small Laser Performance ------------- Evolutions (1) 500 Regions Visited (3) 600 Robots Destroyed (10) 50 Value Destroyed (292) 292 Prototype IDs (1) 20 Alien Tech Used (0) 0 Bonus (200) 200 TOTAL SCORE: 1662 Bonus ------- Pacifist 200 Cogmind --------- Core Integrity 0/400 Matter 262/300 Energy 100/100 System Corruption 0% Temperature Cool (6) Movement Rolling (90) Location -9/Materials Parts ------- > --- POWER (1) -------- (None) > --- PROPULSION (2) --- Compact Wheel Improved Flight Unit > --- UTILITY (4) ------ Small Storage Unit Core Shielding Weapon Shielding > --- WEAPON (2) ------- Maul > --- INVENTORY (8) ---- Light Ion Engine High-capacity Storage Unit ECM Suite Shield Generator Datajack Peak State ------------ > --- POWER ------------ (None) > --- PROPULSION ------- Compact Wheel Improved Flight Unit > --- UTILITY ---------- Small Storage Unit Core Shielding Weapon Shielding > --- WEAPON ----------- Maul > --- INVENTORY -------- Light Ion Engine High-capacity Storage Unit ECM Suite Shield Generator Datajack [Rating: 9] Favorites ----------- Power Light Ion Engine Engine Light Ion Engine Propulsion Compact Wheel Wheel Compact Wheel Flight Unit Improved Flight Unit Utility Structural Scanner Device Structural Scanner Storage Small Storage Unit Protection Weapon Shielding Weapon Maul Impact Weapon Maul Special Melee Weapon Datajack Build | -11 -10 -10 -9 ------- Run | Yrd Mat Min Mat Slots Evolved 2 | . . . 2 Power . | . . . . Propulsion . | . . . . Utility 2 | . . . 2 Weapon . | . . . . Parts Attached 16 | 4 1 4 7 Power 1 | 1 . . . Engine 1 | 1 . . . Core . | . . . . Reactor . | . . . . Propulsion 7 | 2 . 1 4 Treads . | . . . . Leg . | . . . . Wheel 6 | 2 . 1 3 Hover . | . . . . Flight 1 | . . . 1 Utility 6 | 1 . 3 2 Device 2 | . . 2 . Storage 2 | 1 . 1 . Processor . | . . . . Hackware . | . . . . Protection 2 | . . . 2 Artifact . | . . . . Weapon 2 | . 1 . 1 Energy Gun . | . . . . Energy Cannon . | . . . . Ballistic Gun . | . . . . Ballistic Cannon . | . . . . Launcher . | . . . . Special Weapon . | . . . . Impact Weapon 1 | . . . 1 Slashing Weapon . | . . . . Piercing Weapon . | . . . . Special Melee Weapon 1 | . 1 . . Unidentified Prototypes 1 | . . . 1 Parts Lost 6 | . 1 2 3 Power . | . . . . Propulsion 5 | . 1 2 2 Utility 1 | . . . 1 Weapon . | . . . . Highest Loss Streak 2 | . 1 2 2 To Critical Strikes . | . . . . Average Backups 4 | . 2 4 5 Power 1 | . 1 2 1 Propulsion . | . . . . Utility 2 | . . 1 3 Weapon . | . . . . Tool/Special . | . . . . Unused Backups 3 | . . . 3 Power 1 | . . . 1 Propulsion . | . . . . Utility 2 | . . . 2 Weapon . | . . . . Tool/Special . | . . . . Average Slot Usage (%) 31 | . 45 34 26 Engine 1 | . 8 . . Wheel 13 | . 25 18 6 Flight 1 | . . . 3 Device 3 | . . 5 3 Storage 4 | . 8 5 3 Protection 1 | . . . 2 Impact Weapon 3 | . . . 5 Special Melee Weapon 2 | . 2 4 1 Peak Build Rating 9 | 4 4 5 9 Average Rating 3 | 3 2 2 3 On Entrance 2 | . 4 1 3 Avg Prop Armor Cover (%) 16 | . 23 18 11 Naked Turns 22 | . . . 22 Heaviest Build 42 | 8 8 42 10 Greatest Support 32 | 26 26 32 32 Greatest Overweight (x) 13 | . . 13 . Average Overweight (x) . | . . . . Largest Inventory Capacity 20 | 8 8 20 20 Average Capacity 7 | 7 6 11 5 Most Carried 8 | 1 4 6 8 Average Carried 4 | . 2 4 5 Final Capacity 20 | 8 5 20 8 Final Carried 5 | 1 4 5 5 Class Distribution -------------------- 100% | Mutant Dominant Class ---------------- Mutant | -10/Materials Mutant | -10/Mines Mutant | -9/Materials Resources | -11 -10 -10 -9 ----------- Run | Yrd Mat Min Mat Matter Collected 319 | 78 . 93 148 Remotely . | . . . . Salvage Created 282 | . . . 282 Parts 4 | . . . 4 Haulers Intercepted . | . . . . Recyclers Shooed . | . . . . Parts Field Recycled . | . . . . Retrieved Matter . | . . . . Parts Self-Destructed . | . . . . Prevented . | . . . . Parts Restored . | . . . . Kills | -11 -10 -10 -9 ------- Run | Yrd Mat Min Mat Combat Hostiles Destroyed 10 | . . . 10 Melee 2 | . . . 2 Classes Destroyed 3 | . . . 3 Swarmer 3 | . . . 3 Grunt 6 | . . . 6 Sentry 1 | . . . 1 Best Kill Streak 4 | . . . 4 Combat Bots Only 4 | . . . 4 Max Kills in Single Turn 1 | . . . 1 Gunslinging . | . . . . Exploded . | . . . . Melee 1 | . . . 1 Uniques/NPCs Destroyed . | . . . . Combat | -11 -10 -10 -9 -------- Run | Yrd Mat Min Mat Hostile Shots Fired 124 | . 25 15 84 Missed 37 | . 8 7 22 Hits 87 | . 17 8 62 Projectile 87 | . 17 8 62 Damage Taken 916 | . 148 69 699 Core 482 | . 59 20 403 Absorbed by Shields . | . . . . Redirected to Shielding 43 | . . . 43 Core Remaining (%) 84 | 100 . 68 . Volleys Fired . | . . . . Largest . | . . . . Hottest . | . . . . Shots Fired . | . . . . Gun . | . . . . Cannon . | . . . . Launcher . | . . . . Special . | . . . . Kinetic . | . . . . Thermal . | . . . . Explosive . | . . . . Electromagnetic . | . . . . Robot Hit Streak . | . . . . Robot Miss Streak . | . . . . Penetration Max . | . . . . Secondary Targets . | . . . . Shots Hit Robots 31 | . 2 3 26 Core Hits 1 | . 1 . . Critical Kills . | . . . . Critical Parts Destroyed 6 | . . . 6 Critical Strikes 7 | . . . 7 Smash 7 | . . . 7 Melee Attacks 42 | . 2 3 37 Impact 36 | . . . 36 Slashing . | . . . . Piercing . | . . . . Sneak Attacks 6 | . 2 3 1 Combat Hostiles . | . . . . Follow-up Attacks . | . . . . Damage Inflicted 950 | . 9 2 939 Guns . | . . . . Cannons . | . . . . Explosions . | . . . . Melee 939 | . . . 939 Ramming 11 | . 9 2 . Kinetic . | . . . . Thermal . | . . . . Explosive . | . . . . Electromagnetic . | . . . . Impact 939 | . . . 939 Slashing . | . . . . Piercing . | . . . . Highest Corruption . | . . . . Average Corruption . | . . . . Corruption Purged . | . . . . Corruption Blocked . | . . . . Overload Shots . | . . . . Overflow Damage 355 | . . . 355 Projectiles . | . . . . Explosions . | . . . . Melee 355 | . . . 355 Knockbacks 5 | . . . 5 Impact 5 | . . . 5 Kinetic . | . . . . Secondary . | . . . . Self-Inflicted Damage 4 | . 3 1 . Shots . | . . . . Rammed 4 | . 3 1 . Targets Rammed 4 | . 3 1 . Kicked . | . . . . Crushed . | . . . . Highest Temperature . | . . . . Average Temperature . | . . . . Received Heat Transfer 321 | . 24 6 291 Siege Activations . | . . . . Martial Activations . | . . . . Shielding Activations . | . . . . Robots Disrupted . | . . . . Combat Hostiles . | . . . . Robots Corrupted 8 | . . . 8 Combat Hostiles 8 | . . . 8 Parts Fried 6 | . . . 6 Impact Corruptions 14 | . . . 14 Robots Melted . | . . . . Combat Hostiles . | . . . . Parts Melted . | . . . . Heat Transferred . | . . . . Parts Sabotaged . | . . . . Parts Stolen . | . . . . Parts Stripped . | . . . . Power Chain Reactions . | . . . . Alert | -11 -10 -10 -9 ------- Run | Yrd Mat Min Mat Maximum Alert Level 1 | . . . 1 Low Security (%) 81 | 100 100 100 62 Level 1 18 | . . . 37 Level 2 . | . . . . Level 3 . | . . . . Level 4 . | . . . . Level 5 . | . . . . High Security . | . . . . Max Security . | . . . . Peak Influence 257 | . 25 30 257 Initial 9 | . . 9 1 Average 65 | . 3 7 123 Influence Increases 575 | . 52 75 448 Destroy 0b10 Robot/C 200 | . . . 200 Destroy Leader 30 | . . . 30 Successful Hack 12 | . 7 . 5 Destroy Structure 3 | . . . 3 Partial Spotted 30 | . . . 30 Lose Combat Pursuer 300 | . 45 75 180 Influence Decreases 337 | . 27 95 215 Entered New Map 20 | . . 16 4 Time Decay 267 | . 17 69 181 Lost Part 50 | . 10 10 30 Squads Dispatched 4 | . 2 . 2 Investigation 1 | . 1 . . Extermination . | . . . . Reinforcement 3 | . 1 . 2 Assault . | . . . . Garrison . | . . . . Intercept . | . . . . Searches Triggered . | . . . . Construction Impeded . | . . . . Haulers Reinforced . | . . . . Active Scanning Responses . | . . . . Cargo Convoy Interrupts . | . . . . Stealth | -11 -10 -10 -9 --------- Run | Yrd Mat Min Mat Distress Signals 5 | . 1 . 4 Communications Jammed . | . . . . Distress Signals . | . . . . Times Spotted 44 | . 7 6 31 Peak Tracking Total 10 | . 7 3 10 Tactical Retreats 12 | . 2 3 7 Traps | -11 -10 -10 -9 ------- Run | Yrd Mat Min Mat Traps Triggered 2 | . 1 . 1 Indirectly . | . . . . Trap Hack Attempts . | . . . . Triggered . | . . . . Disarmed . | . . . . Reprogrammed . | . . . . Reused . | . . . . Traps Extracted . | . . . . Installed . | . . . . Triggered . | . . . . Machines | -11 -10 -10 -9 ---------- Run | Yrd Mat Min Mat Machines Disabled . | . . . . Max in Single Turn . | . . . . Machines Repaired . | . . . . Machines Dismantled . | . . . . Machines Sabotaged . | . . . . Overloaded Fab Kills . | . . . . Hacking | -11 -10 -10 -9 --------- Run | Yrd Mat Min Mat Machines Accessed 6 | . 1 . 5 Terminals 4 | . 1 . 3 Fabricators . | . . . . Repair Stations . | . . . . Recycling Units 1 | . . . 1 Scanalyzers 1 | . . . 1 Garrison Access . | . . . . Total Hacks 16 | . 2 . 14 Successful 9 | . 1 . 8 Failed 7 | . 1 . 6 Catastrophic . | . . . . Database Lockouts . | . . . . Manual 8 | . . . 8 Terminals 10 | . 2 . 8 Fabricators . | . . . . Repair Stations . | . . . . Recycling Units 2 | . . . 2 Scanalyzers 4 | . . . 4 Garrison Access . | . . . . Terminal Hacks 1 | . 1 . . Branch Access Points 1 | . 1 . . Fabricator Hacks . | . . . . Repair Station Hacks . | . . . . Recycling Unit Hacks 1 | . . . 1 Report Inventory 1 | . . . 1 Scanalyzer 4 | . . . 4 Retrieve Study 4 | . . . 4 Garrison Access Hacks . | . . . . Unauthorized Hacks 3 | . . . 3 Terminals 3 | . . . 3 Assimilate 2 | . . . 2 Botnet 1 | . . . 1 Fabricators . | . . . . Repair Stations . | . . . . Recycling Units . | . . . . Scanalyzers . | . . . . Garrison Access . | . . . . Data Cores Recovered . | . . . . Used . | . . . . Hacking Detections 4 | . 1 . 3 Full Trace Events . | . . . . Feedback Events . | . . . . Feedback Blocked . | . . . . Robot Schematics Acquired . | . . . . Robots Built . | . . . . Authchips . | . . . . Time . | . . . . Total Robot Build Rating . | . . . . Part Schematics Acquired . | . . . . Parts Built . | . . . . Authchips . | . . . . Time . | . . . . Total Part Build Rating . | . . . . Part Studies Acquired 4 | . . . 4 Parts Repaired . | . . . . Time . | . . . . Parts Recycled . | . . . . Recycled Matter . | . . . . Retrieved Matter . | . . . . Retrieved Components . | . . . . Parts Scanalyzed . | . . . . Part Schematics Acquired . | . . . . Parts Damaged . | . . . . Bothacking | -11 -10 -10 -9 ------------ Run | Yrd Mat Min Mat Used RIF Installer . | . . . . Robots Hacked 2 | . 1 1 . Non-combat 2 | . 1 1 . Combat . | . . . . Robot Hacks Applied 2 | . 1 1 . no_distress 2 | . 1 1 . Relay Couplers Released . | . . . . Fabnet Peak Effective % . | . . . . Robots Rewired . | . . . . Allies Hacked . | . . . . Hacks Repelled . | . . . . Allies | -11 -10 -10 -9 -------- Run | Yrd Mat Min Mat Total Allies 1 | . . . 1 Largest Group 1 | . . . 1 Highest-Rated Group 10 | . . . 10 Highest-Rated Ally 10 | . . . 10 Total Orders . | . . . . Ally Attacks . | . . . . Total Damage . | . . . . Kills . | . . . . Allies Corrupted . | . . . . Allies Melted . | . . . . Intel | -11 -10 -10 -9 ------- Run | Yrd Mat Min Mat Active Infowar (turns) 220 | . . 114 106 Terrain 20 | . . 20 . Structural 200 | . . 94 106 Robot Analysis Total . | . . . . Derelict Logs Recovered . | . . . . Drone Launches . | . . . . Drone Recoveries . | . . . . Exploration | -11 -10 -10 -9 ------------- Run | Yrd Mat Min Mat Turns Passed 760 | 36 88 252 384 Spaces Moved 874 | 33 119 303 419 Core 563 | 3 71 220 269 Treads . | . . . . Legs . | . . . . Wheels 192 | 30 48 83 31 Hover . | . . . . Flight 119 | . . . 119 Fastest Speed 45 | 50 50 50 45 Average Speed 61 | 88 66 70 51 Slowest Speed 700 | 100 90 700 100 Overloaded Moves . | . . . . Propulsion Burnouts . | . . . . Robots Hopped . | . . . . Potential Cave-ins . | . . . . Cave-ins Triggered . | . . . . Exploration Rate (%) 37 | 4 35 76 35 Regions Visited 3 Branch Regions 1 Pre-discovered Areas . | . . . . Known Exits Taken 1 | . 1 . . Unknown Exits Taken 2 | 1 . 1 . Scrap Searched 2 | . . 2 . Spaces Dug 3 | . . . 3 Terrain Destroyed 3 | . . . 3 Melee 3 | . . . 3 Projectile . | . . . . AOE . | . . . . Terrain Rammed . | . . . . Walls Destroyed . | . . . . Machines Disabled . | . . . . Actions | -11 -10 -10 -9 --------- Run | Yrd Mat Min Mat Total 1018 | 37 127 343 511 Wait 68 | . . 30 38 Move 871 | 32 118 302 419 Hop . | . . . . Pick Up 5 | 1 . 2 2 Fast Attach 14 | 4 1 3 6 Attach 4 | . . 1 3 Detach 6 | . 3 . 3 Swap 2 | . . 1 1 Drop 2 | . . . 2 Fire . | . . . . Melee 42 | . 2 3 37 Ram 4 | . 3 1 . Kick . | . . . . Crush . | . . . . Escape Stasis . | . . . . Rewire . | . . . . Trap . | . . . . Miscellaneous . | . . . . Route ------- -11/Scrapyard -10/Materials (discovered 2 exits: *Min x2) -10/Mines (discovered 2 exits: *Mat / [Sub]) -9/Materials History --------- Turn | Location | Event 9 | -11/Scrapyard | Discovered new exit (range 16) 37 | -11/Scrapyard | Entered Materials 85 | -10/Materials | Identified exit to Mines 125 | -10/Materials | Entered Mines 315 | -10/Mines | Build established: Mutant 316 | -10/Mines | Discovered new exit (range 12) 316 | -10/Mines | Discovered new exit (range 8) 377 | -10/Mines | Entered Materials 377 | -9/Materials | Evolved 2 slots: Utility x2 599 | -9/Materials | Core integrity fell below 50% 738 | -9/Materials | Core integrity fell below 20% 761 | -9/Materials | Destroyed by G-34 Mercenary with Small Laser Last Messages --------------- 00718_ O-16 Technician accesses terminal... 00718_ O-16 Technician IFF database reprogrammed. 00722_ G-34 Mercenary knocked back. 00724_ K-01 Serf cleans the Matter Filter. 00726_ G-34 Mercenary suffers critical hit (Smash). 00726_ Destroyed Ion Engine. 00726_ G-34 Mercenary system corrupted by crushing effect. 00728_ O-16 Technician: "IFF HANDSHAKE FAILED. SECURING TERMINAL." 00733_ Destroyed Heat Sink. 00733_ G-34 Mercenary system corrupted by crushing effect. 00733_ G-34 Mercenary destroyed. 00739_ ALERT: Hostiles spotted, dispatching reinforcements to Terminal M005. 00749_ Destroyed Heat Sink. 00749_ G-34 Mercenary system corrupted by crushing effect. 00755_ G-34 Mercenary suffers critical hit (Smash). 00755_ Destroyed Sml. Laser. 00755_ G-34 Mercenary system corrupted by crushing effect. 00756_ G-34 Mercenary system terminally corrupted. 00758_ Acquired 22 matter. Map ----- +----------------------------------------------------+ | | | | | | | | | | | | | | | | | | | | | ?????????????????????????????????????????????????? | | ?????????????????????????????????????????????????? | | ???????????????????????????##????????????????????? | | ???????????????????????#### ##???????????????????? | | ???????????????????? ??????###########???? | | ???????????????????? """ ??????# ##### | | ?????????????????????""" /!!???????# # | | ?????????????????????""" /! ???????# # | | ?????????????????????? /!????????# + | | ?????????????????????? ????????# """" # | | ??????????????????????? ?????????# """" # | | ??????????????????????? ?????????# """" # | | ??????????+#############+####??????# # | | ???????? g % #??????########### | | ???????? g #????????????????# | | ???????? u @ ################## | | ??????????############### | | ?????????????????? ?# | | ?????????????????? # k """"""" | | ????????????????????? + o """"""" | | ????????????????????????# " """"""" | | ????????????????????????# T """"""" | | ????????????????????????# " """"""" | | ????????????????????????### | | ??????????????????????????# t % | | ??????????????????????????# ###################### | | ??????????????????????????# ###### #????# | | ??????????????????????????#r## # #????# | | ??????????????????????????# ## # #????#! | | ??????????????????????????# ## # ] #????# | | ??????????????????????????# ?# # ] #????#" | | ??????????????????????????? ?# # [ #????#" | | ??????????????????????????? ?# # #????# | | ??????????????????????????? ?# # %%= #????# | | ?????????????????????????????###+#####+########### | | ??????????????????????????# % | | ??????????????????????????# | | ??????????????????????????+ | | ??????????????????????????# #################### | | ?????????????????????????????????????????????????? | +----------------------------------------------------+ Best States ------------- Heat Dissipation 28 Energy Generation 10 Energy Capacity 125 Matter Stores 300 Matter Capacity 300 Sight Range 16 Terrain Scan Range 14 Terrain Scan Density 10 Core Shielding 20 Weapon Shielding 33 Evasion (%) 61 Item Schematics ----------------- None Robot Schematics ------------------ None Fabricated ------------ Nothing Repaired ---------- Nothing Studied --------- Maul | -9/Materials | Hacked Lgt. Ion Engine | -9/Materials | Hacked Com. Wheel | -9/Materials | Hacked Datajack | -9/Materials | Hacked Alien Tech Used ----------------- None Achievements -------------- None Challenges ------------ None Game ------ Seed CorruptionParticleRail Manual? 0 Play Time 00:15:49 Cumulative 94.1 hours Start 2026.08.23 @ 13:35:52 End 2026.08.23 @ 13:48:06 Sessions 1 Manual Loads 0 Difficulty Rogue Special Mode None Game No. 63 Rogue 63 Adventurer 0 Explorer 0 Win Type - Total 0 Types 0/0/0/0/0/0/0/0/0/0 Lore% 34 Gallery% 40 Achievement% 31 Wizard Run 0 Options --------- Layout 0 ASCII 0 Keyboard 1 Movement Vi Keybinds 0 Fullscreen 2 Font 18/SmallcapsGlow Map View 76x50 Zoom Use 0% Tactical HUD 1 Map Filters NONE Filters NONE Steam 1 RUN: 67e4e4cf-ba3e-49e8-98d1-a04b21c10173